bitfinex/quotes_BTCUSD_20250607
["timestamp","ask_amount","ask_price","bid_price","bid_amount"]
[1749268785688,0.59009252,105010.0,105000.0,0.64428]
[1749268786153,0.58339343,105010.0,105000.0,0.64428]
[1749268786355,0.59009252,105010.0,105000.0,0.64428]
[1749268787185,0.59009245,105010.0,105000.0,0.64428]
[1749268787385,0.59009256,105010.0,105000.0,0.64428]
[1749268787589,0.58339343,105010.0,105000.0,0.64428]
[1749268787792,0.59009256,105010.0,105000.0,0.64428]
[1749268788715,0.58339343,105010.0,105000.0,0.64428]
[1749268788904,0.59009253,105010.0,105000.0,0.64428]
[1749268789258,0.58339343,105010.0,105000.0,0.64428]
[1749268789465,0.59009253,105010.0,105000.0,0.64428]
[1749268790849,0.59009251,105010.0,105000.0,0.64428]
[1749268791562,0.58339343,105010.0,105000.0,0.64428]
[1749268791762,0.59009251,105010.0,105000.0,0.64428]
[1749268792186,0.5900925,105010.0,105000.0,0.64428]
[1749268792380,0.58339343,105010.0,105000.0,0.64428]
[1749268792610,0.5900925,105010.0,105000.0,0.64428]
[1749268794641,0.55329343,105010.0,105000.0,0.64428]
[1749268794871,0.5599925,105010.0,105000.0,0.64428]
[1749268795137,0.56951531,105010.0,105000.0,0.83475619]
[1749268795366,0.57903756,105010.0,105000.0,0.97317929]
[1749268795580,0.54950339,105010.0,105000.0,0.99222617]
[1749268795803,0.54950339,105010.0,105000.0,0.99222626]
[1749268796082,0.36856824,105010.0,105000.0,1.00174952]
[1749268796288,0.57758033,105010.0,105000.0,1.00174952]
[1749268796896,0.56805743,105010.0,105000.0,1.01127269]
[1749268797805,0.57758033,105010.0,105000.0,1.00174952]
[1749268798639,0.76803838,105010.0,105000.0,0.99222626]
[1749268799050,0.55853435,105010.0,105000.0,0.95972509]
[1749268799251,0.56805652,105010.0,105000.0,0.99082509]
[1749268799452,0.57757905,105010.0,105000.0,0.99082509]
[1749268799920,0.57757878,105010.0,105000.0,0.99082509]
[1749268800135,0.57757869,105010.0,105000.0,0.99082509]
[1749268800352,0.55853417,105010.0,105000.0,0.99082509]
[1749268800559,0.5871015,105010.0,105000.0,0.99082509]
[1749268800768,0.58710141,105010.0,105000.0,0.99082509]
[1749268801223,0.59662413,105010.0,105000.0,0.9813021]
[1749268801428,0.58710141,105010.0,105000.0,0.9813021]
[1749268802285,0.59662413,105010.0,105000.0,0.9813021]
[1749268802962,0.59662486,105010.0,105000.0,0.9813021]
[1749268803181,1.30752776,105010.0,105000.0,0.36339948]
[1749268803402,0.75851567,105010.0,105000.0,0.36339948]
[1749268803665,0.75851567,105010.0,105000.0,0.75004328]
[1749268803887,0.75851567,105010.0,105000.0,0.74051948]
[1749268804593,0.74899295,105010.0,105000.0,0.75004328]
[1749268805017,0.73089857,105010.0,105000.0,0.37292328]
[1749268805229,0.73089857,105010.0,105000.0,0.75004328]
[1749268806111,0.73089857,105010.0,105000.0,0.74051948]
[1749268810750,0.73089857,105010.0,105000.0,0.78064328]
[1749268810984,0.73089857,105010.0,105000.0,1.05508328]
[1749268811467,0.73089857,105010.0,105000.0,1.06460699]
[1749268811716,0.73089857,105010.0,105000.0,1.25508318]
[1749268812162,0.73089857,105010.0,105000.0,1.04555948]
[1749268812374,0.73089857,105010.0,105000.0,1.01495948]
[1749268813727,0.73089857,105010.0,105000.0,0.63783948]
[1749268814202,5.2502351,105010.0,105000.0,0.54144]
[1749268814418,5.2502351,105010.0,105000.0,0.91852]
[1749268814634,5.24354489,105010.0,105000.0,0.91852]
[1749268814870,1.3410373,105010.0,105000.0,0.91852]
[1749268815108,1.3410373,105010.0,105000.0,0.54144]
[1749268815341,1.3410373,105010.0,105000.0,0.91852]
[1749268815754,1.33434689,105010.0,105000.0,0.91852]
[1749268815972,1.34103729,105010.0,105000.0,0.91852]
[1749268817289,1.33434689,105010.0,105000.0,0.91852]
[1749268817513,1.34103714,105010.0,105000.0,0.91852]
[1749268818142,1.33434689,105010.0,105000.0,0.91852]
[1749268818345,1.34103714,105010.0,105000.0,0.91852]
[1749268818967,1.34103724,105010.0,105000.0,0.91852]
[1749268820651,1.33434689,105010.0,105000.0,0.91852]
[1749268820855,1.34103707,105010.0,105000.0,0.91852]
[1749268821816,1.3410369,105010.0,105000.0,0.91852]
[1749268822783,1.33434689,105010.0,105000.0,0.91852]
[1749268822959,1.3410369,105010.0,105000.0,0.91852]
[1749268823977,1.34103674,105010.0,105000.0,0.91852]
[1749268824396,1.33434689,105010.0,105000.0,0.91852]
[1749268824601,1.34103674,105010.0,105000.0,0.91852]
[1749268825995,1.33434689,105010.0,105000.0,0.91852]
[1749268826401,1.34103674,105010.0,105000.0,0.91852]
[1749268826845,1.34103674,105010.0,105000.0,0.64408]
[1749268827277,1.34103644,105010.0,105000.0,0.64408]
[1749268828982,1.34103672,105010.0,105000.0,0.64408]
[1749268829598,1.34103673,105010.0,105000.0,0.64408]
[1749268830737,1.34103685,105010.0,105000.0,0.64408]
[1749268832603,1.33434689,105010.0,105000.0,0.64408]
[1749268832798,1.34103894,105010.0,105000.0,0.64408]
[1749268833984,1.33434689,105010.0,105000.0,0.64408]
[1749268834200,1.34103908,105010.0,105000.0,0.64408]
[1749268835710,1.33434689,105010.0,105000.0,0.64408]
[1749268835922,1.34103926,105010.0,105000.0,0.64408]
[1749268837379,1.34103953,105010.0,105000.0,0.64408]
[1749268839077,1.33434689,105010.0,105000.0,0.64408]
[1749268839565,1.34103953,105010.0,105000.0,0.64408]
[1749268839776,1.33434689,105010.0,105000.0,0.64408]
[1749268839984,1.34103974,105010.0,105000.0,0.64408]
[1749268840188,1.33434689,105010.0,105000.0,0.64408]
[1749268840396,1.34103997,105010.0,105000.0,0.64408]
[1749268840812,0.24301579,105010.0,105000.0,0.64408]
[1749268841023,1.31151066,105010.0,105000.0,0.64408]
[1749268841232,1.34103997,105010.0,105000.0,0.64408]
[1749268842354,1.34104179,105010.0,105000.0,0.64408]
[1749268843813,1.33434689,105010.0,105000.0,0.64408]
[1749268844021,1.34104669,105010.0,105000.0,0.64408]
[1749268845096,1.33434689,105010.0,105000.0,0.64408]
[1749268845524,1.3410467,105010.0,105000.0,0.64408]
[1749268846472,5.27878893,105010.0,105000.0,0.64408]
[1749268847094,5.27878834,105010.0,105000.0,0.64408]
[1749268847526,5.27208912,105010.0,105000.0,0.64408]
[1749268847740,4.72977625,105010.0,105000.0,0.64408]
[1749268847956,5.27878833,105010.0,105000.0,0.64408]
[1749268849840,5.27208912,105010.0,105000.0,0.64408]
[1749268850067,5.2787879,105010.0,105000.0,0.64408]
[1749268850274,5.2787879,105010.0,105000.0,10.64408]
[1749268850482,5.27208912,105010.0,105000.0,10.64408]
[1749268850900,5.2787879,105010.0,105000.0,10.64408]
[1749268851866,5.27878768,105010.0,105000.0,10.64408]
[1749268852184,5.27208912,105010.0,105000.0,10.64408]
[1749268852535,5.27878768,105010.0,105000.0,10.64408]
[1749268853589,5.27208912,105010.0,105000.0,10.64408]
[1749268853808,5.27878763,105010.0,105000.0,10.64408]
[1749268854220,5.27208912,105010.0,105000.0,10.64408]
[1749268854469,5.27878763,105010.0,105000.0,10.64408]
[1749268855701,5.27208912,105010.0,105000.0,10.64408]
[1749268855915,5.27878763,105010.0,105000.0,10.64408]
[1749268857290,4.18076333,105010.0,105000.0,10.64408]
[1749268857520,5.27878751,105010.0,105000.0,10.64408]
[1749268858796,5.27878748,105010.0,105000.0,10.64408]
[1749268859002,5.27208912,105010.0,105000.0,10.64408]
[1749268859585,5.27878748,105010.0,105000.0,10.64408]
[1749268860253,5.27878744,105010.0,105000.0,10.64408]
[1749268860879,5.27208912,105010.0,105000.0,10.64408]
[1749268861307,5.21864321,105010.0,105000.0,10.64408]
[1749268862241,5.21864319,105010.0,105000.0,10.66038]
[1749268862450,5.21864319,105010.0,105000.0,10.67688]
[1749268862655,1.30944519,105010.0,105000.0,10.66038]
[1749268862868,1.30944516,105010.0,105000.0,10.64408]
[1749268863080,1.30274689,105010.0,105000.0,10.64408]
[1749268863280,1.30944515,105010.0,105000.0,10.64408]
[1749268863486,1.30944521,105010.0,105000.0,10.64408]
[1749268864116,1.30274689,105010.0,105000.0,10.64408]
[1749268864321,1.30944521,105010.0,105000.0,10.64408]
[1749268864495,1.30274689,105010.0,105000.0,10.64408]
[1749268864635,1.3094452,105010.0,105000.0,10.64408]
[1749268865312,1.30944526,105010.0,105000.0,10.64408]
[1749268865823,1.30274689,105010.0,105000.0,10.64408]
[1749268866045,1.30944525,105010.0,105000.0,10.64408]
[1749268866244,1.30274689,105010.0,105000.0,10.64408]
[1749268866448,1.30944525,105010.0,105000.0,10.64408]
[1749268867305,1.30944526,105010.0,105000.0,10.64408]
[1749268867730,1.30274689,105010.0,105000.0,10.64408]
[1749268867932,1.30944526,105010.0,105000.0,10.64408]
[1749268868617,1.30944531,105010.0,105000.0,10.64408]
[1749268869250,1.34124531,105010.0,105000.0,10.64408]
[1749268869824,1.33454689,105010.0,105000.0,10.64408]
[1749268870024,1.34124533,105010.0,105000.0,10.64408]
[1749268870661,1.33454689,105010.0,105000.0,10.64408]
[1749268870869,1.34124537,105010.0,105000.0,10.64408]
[1749268871065,1.34124536,105010.0,105000.0,10.64408]
[1749268871269,1.34124537,105010.0,105000.0,10.64408]
[1749268871468,1.33454689,105010.0,105000.0,10.64408]
[1749268871672,1.3412454,105010.0,105000.0,10.64408]
[1749268873387,1.34124546,105010.0,105000.0,10.64408]
[1749268874231,1.33454689,105010.0,105000.0,10.64408]
[1749268874444,1.34124547,105010.0,105000.0,10.64408]
[1749268874654,1.33454689,105010.0,105000.0,10.64408]
[1749268875267,1.34124557,105010.0,105000.0,10.64408]
[1749268876702,1.34124561,105010.0,105000.0,10.64408]
[1749268876940,1.34124558,105010.0,105000.0,10.64408]
[1749268877565,5.25044358,105010.0,105000.0,10.64408]
[1749268877768,5.24374489,105010.0,105000.0,10.64436]
[1749268877944,5.27898788,105010.0,105000.0,10.64444]
[1749268878597,5.25044365,105010.0,105000.0,10.64444]
[1749268879012,5.27898788,105010.0,105000.0,10.64444]
[1749268879849,5.27228912,105010.0,105000.0,10.64444]
[1749268880048,5.27898794,105010.0,105000.0,10.64444]
[1749268880761,5.27898798,105010.0,105000.0,10.64444]
[1749268881583,5.27898803,105010.0,105000.0,10.64444]
[1749268881799,5.27228912,105010.0,105000.0,10.64444]
[1749268882007,5.27898803,105010.0,105000.0,10.64444]
[1749268882418,5.27898805,105010.0,105000.0,10.64444]
[1749268883248,1.34124582,105010.0,105000.0,10.64444]
[1749268883455,1.33454689,105010.0,105000.0,10.64444]
[1749268883661,1.34124582,105010.0,105000.0,10.64444]
[1749268885234,1.34124586,105010.0,105000.0,10.64444]
[1749268885850,1.33454689,105010.0,105000.0,10.64444]
[1749268886057,1.34124586,105010.0,105000.0,10.64444]
[1749268886473,0.24322174,105010.0,105000.0,10.64444]
[1749268886677,0.22072271,105010.0,105000.0,10.64444]
[1749268886886,1.31874689,105010.0,105000.0,10.64444]
[1749268887094,1.32544592,105010.0,105000.0,10.64444]
[1749268888504,1.37059015,105010.0,105000.0,10.64444]
[1749268888853,1.37059026,105010.0,105000.0,10.64444]
[1749268889056,1.36389112,105010.0,105000.0,10.64444]
[1749268889269,1.33534689,105010.0,105000.0,10.64444]
[1749268889473,1.37059026,105010.0,105000.0,10.64444]
[1749268889681,1.33534689,105010.0,105000.0,10.64444]
[1749268889910,1.34204597,105010.0,105000.0,10.64444]
[1749268890127,1.32544597,105010.0,105000.0,10.64444]
[1749268890580,1.3094461,105010.0,105000.0,10.64444]
[1749268890810,1.30274689,105010.0,105000.0,10.64444]
[1749268891271,1.3094461,105010.0,105000.0,10.64444]
[1749268891499,1.30274689,105010.0,105000.0,10.64444]
[1749268891745,1.3094461,105010.0,105000.0,10.64444]
[1749268892928,1.30274689,105010.0,105000.0,10.64444]
[1749268893156,1.30944609,105010.0,105000.0,10.64444]
[1749268893355,1.30944607,105010.0,105000.0,10.64444]
[1749268894684,1.30274689,105010.0,105000.0,10.64444]
[1749268895062,1.309446,105010.0,105000.0,10.64444]
[1749268895955,1.30944598,105010.0,105000.0,10.64444]
[1749268896730,1.30274689,105010.0,105000.0,10.64444]
[1749268896938,1.34104598,105010.0,105000.0,10.64444]
[1749268897302,1.33434689,105010.0,105000.0,10.64444]
[1749268897501,1.34104609,105010.0,105000.0,10.64444]
[1749268897703,1.3410461,105010.0,105000.0,10.64444]
[1749268898145,1.33434689,105010.0,105000.0,10.64444]
[1749268898378,1.3410461,105010.0,105000.0,10.64444]
[1749268898590,5.2502441,105010.0,105000.0,10.64444]
[1749268898804,5.27878833,105010.0,105000.0,10.64444]
[1749268900411,5.27878831,105010.0,105000.0,10.64444]
[1749268901256,5.27208912,105010.0,105000.0,10.64444]
[1749268901461,5.27878828,105010.0,105000.0,10.64444]
[1749268901782,5.27208912,105010.0,105000.0,10.64444]
[1749268901970,5.27878828,105010.0,105000.0,10.64444]
[1749268902988,5.27878826,105010.0,105000.0,10.64444]
[1749268903382,5.27878826,105010.0,105000.0,10.267]
[1749268903585,5.27878826,105010.0,105000.0,10.64436]
[1749268904745,5.27208912,105010.0,105000.0,10.64436]
[1749268904943,5.27878827,105010.0,105000.0,10.64436]
[1749268905963,5.27878821,105010.0,105000.0,10.64436]
[1749268906140,4.18076403,105010.0,105000.0,10.64436]
[1749268906373,5.27878821,105010.0,105000.0,10.64436]
[1749268906791,5.27208912,105010.0,105000.0,10.64436]
[1749268907219,5.27878821,105010.0,105000.0,10.64436]
[1749268907826,5.27208912,105010.0,105000.0,10.64436]
[1749268908041,5.27878818,105010.0,105000.0,10.64436]
[1749268908441,5.27878818,105010.0,105000.0,10.64424]
[1749268909950,5.27208912,105010.0,105000.0,10.64424]
[1749268910146,5.27878818,105010.0,105000.0,10.64424]
[1749268910355,5.27208912,105010.0,105000.0,10.64424]
[1749268910572,5.27878818,105010.0,105000.0,10.64424]
[1749268911193,5.27878813,105010.0,105000.0,10.64424]
[1749268912365,5.27878808,105010.0,105000.0,10.64424]
[1749268913598,5.27208912,105010.0,105000.0,10.64424]
[1749268913958,5.27878808,105010.0,105000.0,10.64424]
[1749268914397,5.27878801,105010.0,105000.0,10.64424]
[1749268914632,5.27878803,105010.0,105000.0,10.64424]
[1749268914835,5.24718803,105010.0,105000.0,10.64424]
[1749268915038,5.24048912,105010.0,105000.0,10.64424]
[1749268915264,5.24718803,105010.0,105000.0,10.64424]
[1749268915470,5.24048912,105010.0,105000.0,10.64424]
[1749268915890,5.24718803,105010.0,105000.0,10.64424]
[1749268916640,5.24718805,105010.0,105000.0,10.64424]
[1749268917177,5.24048912,105010.0,105000.0,10.64424]
[1749268917385,5.27268912,105010.0,105000.0,10.64424]
[1749268917643,5.27938805,105010.0,105000.0,10.64424]
[1749268918400,5.27268912,105010.0,105000.0,10.267]
[1749268918603,5.27268912,105010.0,105000.0,10.6442]
[1749268919275,5.27938799,105010.0,105000.0,10.6442]
[1749268920011,5.27938799,105010.0,105000.0,10.35504]
[1749268920217,5.27938814,105010.0,105000.0,10.64416]
[1749268920437,5.27268912,105010.0,105000.0,10.64416]
[1749268920639,5.27938814,105010.0,105000.0,10.64416]
[1749268922201,5.27938815,105010.0,105000.0,10.64416]
[1749268922545,5.27268912,105010.0,105000.0,10.64416]
[1749268922745,5.61268912,105010.0,105000.0,10.64416]
[1749268922947,5.61938814,105010.0,105000.0,10.64416]
[1749268923272,5.61938818,105010.0,105000.0,10.64416]
[1749268923678,5.61938865,105010.0,105000.0,10.64416]
[1749268925066,5.61906285,105010.0,105000.0,10.64416]
[1749268925294,5.61906287,105010.0,105000.0,10.64416]
[1749268925742,4.51433914,105010.0,105000.0,10.64416]
[1749268925946,5.61906287,105010.0,105000.0,10.64416]
[1749268927697,5.61906321,105010.0,105000.0,10.64416]
[1749268927906,5.61236332,105010.0,105000.0,10.64416]
[1749268928313,5.61906322,105010.0,105000.0,10.64416]
[1749268929385,5.61236332,105010.0,105000.0,10.64416]
[1749268929587,5.61906322,105010.0,105000.0,10.64416]
[1749268929795,5.61236332,105010.0,105000.0,10.64416]
[1749268930010,5.61906322,105010.0,105000.0,10.64416]
[1749268930326,5.61236332,105010.0,105000.0,10.64416]
[1749268930739,5.61906326,105010.0,105000.0,10.64416]
[1749268930958,5.61236332,105010.0,105000.0,10.64416]
[1749268931161,4.51433914,105010.0,105000.0,10.64416]
[1749268931392,5.60256326,105010.0,105000.0,10.64416]
[1749268932829,5.60256335,105010.0,105000.0,10.64416]
[1749268933923,5.60256334,105010.0,105000.0,10.64416]
[1749268934702,5.59586332,105010.0,105000.0,10.64416]
[1749268934923,5.60256334,105010.0,105000.0,10.64416]
[1749268935211,5.59586332,105010.0,105000.0,10.64416]
[1749268935411,5.60256334,105010.0,105000.0,10.64416]
[1749268935569,5.60256335,105010.0,105000.0,10.64416]
[1749268936720,5.63119035,105010.0,105000.0,10.64416]
[1749268937966,1.70629234,105010.0,105000.0,10.64416]
[1749268938203,1.70629232,105010.0,105000.0,10.64416]
[1749268938534,1.67774808,105010.0,105000.0,10.64416]
[1749268938895,1.67104809,105010.0,105000.0,10.64416]
[1749268939130,1.67774808,105010.0,105000.0,10.64416]
[1749268939335,1.67774809,105010.0,105000.0,10.64416]
[1749268939543,1.67104809,105010.0,105000.0,10.64416]
[1749268939719,1.67774809,105010.0,105000.0,10.64416]
[1749268941250,1.67774759,105010.0,105000.0,10.64416]
[1749268943046,1.67104809,105010.0,105000.0,10.64416]
[1749268943246,1.67774739,105010.0,105000.0,10.64416]
[1749268943559,1.33774739,105010.0,105000.0,10.64416]
[1749268944238,1.33104809,105010.0,105000.0,10.64416]
[1749268944426,1.33774739,105010.0,105000.0,10.64416]
[1749268944604,1.33774736,105010.0,105000.0,10.64416]
[1749268945239,1.33104809,105010.0,105000.0,10.64416]
[1749268945411,1.33774736,105010.0,105000.0,10.64416]
[1749268945827,1.33104809,105010.0,105000.0,10.64416]
[1749268945995,1.33774736,105010.0,105000.0,10.64416]
[1749268946561,1.38249161,105010.0,105000.0,10.64416]
[1749268946763,1.38249173,105010.0,105000.0,10.64416]
[1749268946983,1.39789175,105010.0,105000.0,10.64416]
[1749268947210,1.39119232,105010.0,105000.0,10.64416]
[1749268947363,1.39789176,105010.0,105000.0,10.64416]
[1749268947766,1.3978919,105010.0,105000.0,10.64416]
[1749268947971,1.4203919,105010.0,105000.0,10.64416]
[1749268948167,1.42039194,105010.0,105000.0,10.64416]
[1749268949274,5.32958994,105010.0,105000.0,10.64416]
[1749268949644,5.32958996,105010.0,105000.0,10.64416]
[1749268949849,5.32958991,105010.0,105000.0,10.64416]
[1749268951372,5.32958771,105010.0,105000.0,10.64416]
[1749268951576,5.32289032,105010.0,105000.0,10.64416]
[1749268951987,5.3295875,105010.0,105000.0,10.64416]
[1749268952204,5.30749032,105010.0,105000.0,10.64416]
[1749268952412,5.3141875,105010.0,105000.0,10.64416]
[1749268952895,5.2979875,105010.0,105000.0,10.64416]
[1749268953095,5.29129032,105010.0,105000.0,10.64416]
[1749268953785,5.29798729,105010.0,105000.0,10.64416]
[1749268954901,5.29129032,105010.0,105000.0,10.64416]
[1749268955144,5.29798708,105010.0,105000.0,10.64416]
[1749268955373,5.30789032,105010.0,105000.0,10.64416]
[1749268955580,5.31458708,105010.0,105000.0,10.64416]
[1749268955998,5.31458691,105010.0,105000.0,10.64416]
[1749268957228,5.31458659,105010.0,105000.0,10.64416]
[1749268957434,5.30789032,105010.0,105000.0,10.64416]
[1749268957649,5.31458658,105010.0,105000.0,10.64416]
[1749268958093,5.31458681,105010.0,105000.0,10.64416]
[1749268958524,5.31458694,105010.0,105000.0,10.64416]
[1749268958769,5.30789032,105010.0,105000.0,10.64416]
[1749268959243,5.31458686,105010.0,105000.0,10.64416]
[1749268960395,5.29798683,105010.0,105000.0,10.64416]
[1749268960618,5.29129032,105010.0,105000.0,10.64416]
[1749268961057,5.29798677,105010.0,105000.0,10.64416]
[1749268961713,5.2979868,105010.0,105000.0,10.64416]
[1749268962094,5.29798667,105010.0,105000.0,10.64416]
[1749268962529,5.29798665,105010.0,105000.0,10.64416]
[1749268962729,5.29798668,105010.0,105000.0,10.64416]
[1749268963724,5.29798669,105010.0,105000.0,10.64416]
[1749268964287,5.29129032,105010.0,105000.0,10.64416]
[1749268964484,5.63129032,105010.0,105000.0,10.64416]
[1749268964721,5.63798681,105010.0,105000.0,10.64416]
[1749268965513,5.63129032,105010.0,105000.0,10.64416]
[1749268965714,5.63798679,105010.0,105000.0,10.64416]
[1749268966029,5.63129032,105010.0,105000.0,10.64416]
[1749268966235,5.63798679,105010.0,105000.0,10.64416]
[1749268966888,5.65458679,105010.0,105000.0,10.64416]
[1749268967090,5.67058679,105010.0,105000.0,10.64416]
[1749268967288,5.67058685,105010.0,105000.0,10.64416]
[1749268967493,5.66389032,105010.0,105000.0,10.64416]
[1749268968032,5.67058685,105010.0,105000.0,10.64416]
[1749268968239,5.67058697,105010.0,105000.0,10.64416]
[1749268969304,5.66389032,105010.0,105000.0,10.64416]
[1749268969460,5.67058697,105010.0,105000.0,10.64416]
[1749268969884,5.66389032,105010.0,105000.0,10.64416]
[1749268970070,5.67058758,105010.0,105000.0,10.64416]
[1749268970933,5.66389032,105010.0,105000.0,10.64416]
[1749268971135,5.67058774,105010.0,105000.0,10.64416]
[1749268972174,5.6705893,105010.0,105000.0,10.64416]
[1749268972600,5.66389032,105010.0,105000.0,10.64416]
[1749268972992,5.67058918,105010.0,105000.0,10.64416]
[1749268973610,5.6705893,105010.0,105000.0,10.64416]
[1749268974239,5.67058939,105010.0,105000.0,10.64416]
[1749268974892,5.66389032,105010.0,105000.0,10.64416]
[1749268975088,5.67058939,105010.0,105000.0,10.64416]
[1749268977062,5.66389032,105010.0,105000.0,10.64416]
[1749268977280,5.67058939,105010.0,105000.0,10.64416]
[1749268977629,5.67058943,105010.0,105000.0,10.64416]
[1749268977834,5.66389032,105010.0,105000.0,10.64416]
[1749268978054,5.67058934,105010.0,105000.0,10.64416]
[1749268978252,5.66389032,105010.0,105000.0,10.64416]
[1749268978671,5.67058946,105010.0,105000.0,10.64416]
[1749268979351,5.67058948,105010.0,105000.0,10.64416]
[1749268980230,5.66389032,105010.0,105000.0,10.64416]
[1749268980410,5.67058948,105010.0,105000.0,10.64416]
[1749268980616,5.67058972,105010.0,105000.0,10.64416]
[1749268981236,5.66998972,105010.0,105000.0,10.64416]
[1749268981443,5.66329032,105010.0,105000.0,10.64416]
[1749268981869,5.66998972,105010.0,105000.0,10.64416]
[1749268982980,5.66998959,105010.0,105000.0,10.64416]
[1749268983301,5.66329032,105010.0,105000.0,10.64416]
[1749268983718,5.66998971,105010.0,105000.0,10.64416]
[1749268984328,5.66998975,105010.0,105000.0,10.64416]
[1749268984703,5.66329032,105010.0,105000.0,10.64416]
[1749268984904,5.66998976,105010.0,105000.0,10.64416]
[1749268985503,5.66998976,105010.0,105000.0,10.267]
[1749268985504,5.32998976,105010.0,105000.0,10.267]
[1749268985714,5.32998976,105010.0,105000.0,10.64416]
[1749268986121,5.36808487,105010.0,105000.0,10.64416]
[1749268986358,6.25709696,105010.0,105000.0,10.35504]
[1749268986730,6.25709477,105010.0,105000.0,10.64416]
[1749268986923,5.67953845,105010.0,105000.0,10.64416]
[1749268987127,5.67953853,105010.0,105000.0,10.64416]
[1749268987291,5.7081159,105010.0,105000.0,10.64416]
[1749268987503,5.7081159,105010.0,105000.0,10.267]
[1749268987870,5.7081159,105010.0,105000.0,10.64416]
[1749268988283,5.67002095,105010.0,105000.0,10.64416]
[1749268988488,5.69002069,105010.0,105000.0,10.64416]
[1749268988689,5.72811567,105010.0,105000.0,10.64416]
[1749268989029,5.72141841,105010.0,105000.0,10.64416]
[1749268989247,5.72811581,105010.0,105000.0,10.64416]
[1749268990134,5.72141841,105010.0,105000.0,10.64416]
[1749268990343,5.72811521,105010.0,105000.0,10.267]
[1749268990579,5.72141841,105010.0,105000.0,10.64416]
[1749268990784,5.72811521,105010.0,105000.0,10.64416]
[1749268990987,5.72141841,105010.0,105000.0,10.64416]
[1749268991192,5.72811521,105010.0,105000.0,10.64416]
[1749268991892,5.72141841,105010.0,105000.0,10.64416]
[1749268992234,5.72811523,105010.0,105000.0,10.64416]
[1749268992572,5.67000481,105010.0,105000.0,10.64416]
[1749268992779,5.67670163,105010.0,105000.0,10.64416]
[1749268993280,5.63860563,105010.0,105000.0,10.64416]
[1749268993577,5.6900308,105010.0,105000.0,10.64416]
[1749268993807,5.68333503,105010.0,105000.0,10.64416]
[1749268993993,5.69003047,105010.0,105000.0,10.64416]
[1749268994123,5.69003036,105010.0,105000.0,10.64416]
[1749268994349,5.6604794,105010.0,105000.0,10.64416]
[1749268994552,5.63190986,105010.0,105000.0,10.64416]
[1749268994998,5.63860528,105010.0,105000.0,10.64416]
[1749268995390,5.63190986,105010.0,105000.0,10.64416]
[1749268995600,5.63860528,105010.0,105000.0,10.64416]
[1749268996140,5.63190986,105010.0,105000.0,10.64416]
[1749268996715,5.63860528,105010.0,105000.0,10.64416]
[1749268996929,5.6671744,105010.0,105000.0,10.64416]
[1749268997097,5.63190986,105010.0,105000.0,10.64416]
[1749268997300,5.63860512,105010.0,105000.0,10.64416]
[1749268997703,5.60997812,105010.0,105000.0,10.64416]
[1749268998136,5.60328286,105010.0,105000.0,10.64416]
[1749268998345,5.60997822,105010.0,105000.0,10.64416]
[1749268998542,5.60997822,105010.0,105000.0,10.267]
[1749268998759,5.60997794,105010.0,105000.0,10.64412]
[1749268998965,5.60328286,105010.0,105000.0,10.64412]
[1749268999145,5.60997815,105010.0,105000.0,10.64412]
[1749268999866,5.6099782,105010.0,105000.0,10.64412]
[1749269000263,5.60328286,105010.0,105000.0,10.64412]
[1749269000425,5.60997815,105010.0,105000.0,10.64412]
[1749269000828,5.60997797,105010.0,105000.0,10.64412]
[1749269001427,5.60997799,105010.0,105000.0,10.64412]
[1749269001580,5.609978,105010.0,105000.0,10.64412]
[1749269001776,5.60328286,105010.0,105000.0,10.64412]
[1749269002307,5.609978,105010.0,105000.0,10.64412]
[1749269003524,5.60328286,105010.0,105000.0,10.64412]
[1749269004109,5.60997777,105010.0,105000.0,10.64412]
[1749269004349,5.60997782,105010.0,105000.0,10.64412]
[1749269004712,5.6099778,105010.0,105000.0,10.64412]
[1749269005048,5.60328286,105010.0,105000.0,10.64412]
[1749269005410,5.60997782,105010.0,105000.0,10.64412]
[1749269005626,5.60997792,105010.0,105000.0,10.64412]
[1749269006071,5.62451877,105010.0,105000.0,10.267]
[1749269006274,5.61782371,105010.0,105000.0,10.64412]
[1749269006706,5.62451889,105010.0,105000.0,10.64412]
[1749269006982,5.71403418,105010.0,105000.0,10.64412]
[1749269007608,5.71403412,105010.0,105000.0,10.64412]
[1749269008010,5.70733897,105010.0,105000.0,10.64412]
[1749269008226,5.71403412,105010.0,105000.0,10.64412]
[1749269008986,5.67594223,105010.0,105000.0,10.64412]
[1749269009190,5.66924737,105010.0,105000.0,10.64412]
[1749269009401,5.71403388,105010.0,105000.0,10.64412]
[1749269009612,5.71403394,105010.0,105000.0,10.64412]
[1749269010023,5.70733897,105010.0,105000.0,10.64412]
[1749269010211,5.71403406,105010.0,105000.0,10.64412]
[1749269011135,5.70733897,105010.0,105000.0,10.64412]
[1749269011756,5.7140345,105010.0,105000.0,10.64412]
[1749269012411,5.71403534,105010.0,105000.0,10.64412]
[1749269013169,5.70733897,105010.0,105000.0,10.64412]
[1749269013379,5.70733897,105010.0,105000.0,10.35504]
[1749269013562,5.70733897,105010.0,105000.0,10.64412]
[1749269013805,5.71403534,105010.0,105000.0,10.64412]
[1749269014239,5.81043478,105010.0,105000.0,10.267]
[1749269014449,5.81043478,105010.0,105000.0,10.64412]
[1749269014656,5.80373845,105010.0,105000.0,10.64412]
[1749269014862,5.81043743,105010.0,105000.0,10.64412]
[1749269015072,5.80373845,105010.0,105000.0,10.64412]
[1749269015484,5.7818688,105010.0,105000.0,10.64412]
[1749269016208,5.77516975,105010.0,105000.0,10.64412]
[1749269016411,5.7818688,105010.0,105000.0,10.64412]
[1749269016657,5.78186873,105010.0,105000.0,10.64412]
[1749269017491,5.77516975,105010.0,105000.0,10.64412]
[1749269017701,5.78186876,105010.0,105000.0,10.64412]
[1749269017916,5.77516975,105010.0,105000.0,10.64412]
[1749269018337,5.78186876,105010.0,105000.0,10.64412]
[1749269018755,5.77516975,105010.0,105000.0,10.64412]
[1749269018956,5.78186876,105010.0,105000.0,10.64412]
[1749269019496,5.8104502,105010.0,105000.0,10.64412]
[1749269019723,5.81045048,105010.0,105000.0,10.64412]
[1749269019922,5.81045062,105010.0,105000.0,10.64412]
[1749269020239,5.81045073,105010.0,105000.0,10.64412]
[1749269020912,5.78186929,105010.0,105000.0,10.64412]
[1749269021326,5.78186938,105010.0,105000.0,10.64412]
[1749269021448,5.78186939,105010.0,105000.0,10.64412]